lending/lending_fUSD_20260211
["ID","MTS","AMOUNT","RATE_DAILY","PERIOD"]
[405085671,1770772251363,-1664.67,0.00042,14]
[405085672,1770772251374,-179.166499,0.00042,120]
[405085673,1770772251383,-151.0,0.00042,120]
[405085674,1770772251393,-151.0,0.00042,120]
[405085675,1770772251403,-151.0,0.00042,120]
[405085676,1770772251413,-151.0,0.00042,120]
[405085677,1770772251499,-151.0,0.00042,120]
[405085678,1770772251510,-151.0,0.00042,120]
[405085679,1770772251520,-187.573941,0.00042,120]
[405085680,1770772251529,-151.0,0.00042,120]
[405085681,1770772251539,-151.0,0.00042,120]
[405085682,1770772251548,-377.394583,0.00042,120]
[405085683,1770772251558,-377.394583,0.00042,120]
[405085684,1770772251567,-377.394583,0.00042,120]
[405085685,1770772251577,-377.394583,0.00042,120]
[405085686,1770772251586,-167.509418,0.00042,28]
[405085687,1770772251596,-167.509418,0.00042,28]
[405085688,1770772251606,-167.509418,0.00042,28]
[405085689,1770772251615,-167.509418,0.00042,28]
[405085690,1770772251628,-151.0,0.00042,120]
[405085691,1770772251638,-151.0,0.00042,120]
[405085692,1770772251651,-151.0,0.00042,120]
[405085693,1770772251660,-162.637287,0.00042,120]
[405085694,1770772251670,-151.0,0.00042,120]
[405085695,1770772251680,-151.0,0.00042,120]
[405085696,1770772251690,-151.0,0.00042,120]
[405085697,1770772251700,-151.0,0.00042,120]
[405085698,1770772251709,-162.829473,0.00042,120]
[405085699,1770772251719,-151.0,0.00042,120]
[405085700,1770772251729,-928.639306,0.00042,7]
[405085701,1770772251738,-151.0,0.00042,120]
[405085702,1770772251748,-928.639306,0.00042,7]
[405085703,1770772251757,-928.639306,0.00042,7]
[405085704,1770772251767,-151.0,0.00042,31]
[405085705,1770772251777,-928.639306,0.00042,7]
[405085706,1770772251787,-151.0,0.00042,31]
[405085707,1770772251797,-151.0,0.00042,120]
[405085708,1770772251807,-151.0,0.00042,31]
[405085709,1770772251816,-285.974424,0.00042,120]
[405085710,1770772251826,-151.0,0.00042,120]
[405085711,1770772251835,-151.0,0.00042,120]
[405085712,1770772251845,-151.0,0.00042,120]
[405085713,1770772251855,-151.0,0.00042,120]
[405085714,1770772251864,-497.436968,0.00042,7]
[405085715,1770772251875,-497.436968,0.00042,7]
[405085716,1770772251885,-497.436968,0.00042,7]
[405085717,1770772251895,-151.0,0.00042,120]
[405085718,1770772251905,-151.0,0.00042,120]
[405085719,1770772251914,-497.436968,0.00042,7]
[405085720,1770772251923,-151.0,0.00042,120]
[405085721,1770772251937,-151.0,0.00042,120]
[405085722,1770772251947,-151.0,0.00042,120]
[405085723,1770772251956,-151.0,0.00042,120]
[405085724,1770772251966,-151.0,0.00042,120]
[405085725,1770772251976,-167.541331,0.00042,120]
[405085726,1770772251986,-151.0,0.00042,120]
[405085727,1770772251996,-151.0,0.00042,120]
[405085728,1770772252006,-151.0,0.00042,120]
[405085729,1770772252015,-151.0,0.00042,120]
[405085730,1770772252025,-244.401987,0.00042,120]
[405085731,1770772252035,-151.0,0.00042,120]
[405085732,1770772252045,-244.401987,0.00042,120]
[405085733,1770772252055,-244.401987,0.00042,120]
[405085734,1770772252064,-151.0,0.00042,120]
[405085735,1770772252074,-244.401987,0.00042,120]
[405085736,1770772252083,-151.0,0.00042,120]
[405085737,1770772252094,-4103.58,0.00042054,120]
[405085738,1770772252103,-153.04,0.00042075,120]
[405085739,1770772252113,-582.0,0.000421,3]
[405085740,1770772252122,-848.2,0.000421,14]
[405085741,1770772252132,-2000.0,0.000421,7]
[405085742,1770772252142,-500.0,0.00042136,45]
[405085743,1770772252152,-153.04,0.00042175,120]
[405085744,1770772252162,-500.0,0.00042191,120]
[405085745,1770772252171,-500.0,0.00042191,120]
[405085746,1770772252181,-500.0,0.00042191,120]
[405085747,1770772252191,-500.0,0.00042191,120]
[405085748,1770772252201,-500.0,0.00042191,120]
[405085749,1770772252211,-500.0,0.00042191,120]
[405085750,1770772252220,-500.0,0.00042191,120]
[405085751,1770772252229,-500.0,0.00042191,120]
[405085752,1770772252239,-500.0,0.00042191,120]
[405085753,1770772252248,-500.0,0.00042191,120]
[405085754,1770772252259,-500.0,0.00042191,120]
[405085755,1770772252268,-500.0,0.00042191,120]
[405085756,1770772252279,-500.0,0.00042191,120]
[405085757,1770772252288,-500.0,0.00042191,120]
[405085758,1770772252297,-500.0,0.00042191,120]
[405085759,1770772252307,-500.0,0.00042191,120]
[405085760,1770772252316,-281.12663338,0.00042191,120]
[405085761,1770772252326,-1000.0,0.00042192,30]
[405085762,1770772252335,-765.42464117,0.000422,2]
[405085763,1770772252346,-151.0,0.000422,120]
[405085764,1770772252355,-150.0,0.00042237,120]
[405085765,1770772252365,-12500.0,0.0004225,120]
[405085766,1770772252377,-153.04,0.00042275,120]
[405085767,1770772252386,-312.71243292,0.00042278,2]
[405085768,1770772252396,-150.0,0.00042278,120]
[405085769,1770772252406,-52502.04,0.000423,2]
[405085770,1770772252415,-153.04,0.00042375,120]
[405085771,1770772252425,-83928.890491,0.000424,3]
[405085772,1770772252434,-317.63569827,0.00042425,7]
[405085773,1770772252444,-150.0,0.00042426,120]
[405085774,1770772252454,-350.0,0.00042434,2]
[405085775,1770772252462,-500.55,0.00042438,120]
[405085776,1770772252472,-500.0,0.00042438,120]
[405085777,1770772252481,-1000.0,0.00042466,30]
[405085778,1770772252490,-500.0,0.00042466,60]
[405085779,1770772252500,-500.0,0.00042466,60]
[405085780,1770772252509,-500.0,0.00042466,60]
[405085781,1770772252519,-205.38170336,0.00042466,120]
[405085782,1770772252528,-500.0,0.00042466,120]
[405085783,1770772252538,-153.04,0.00042475,120]
[405085784,1770772252548,-168.0,0.00042494,2]
[405085785,1770772252558,-153.14863031,0.000425,120]
[405085786,1770772252568,-1500.000999,0.000425,120]
[405085787,1770772252578,-7593.47671998,0.000425,120]
[405085788,1770772252587,-200.0,0.000425,23]
[405085789,1770772252597,-1034.8,0.00042509,120]
[405085790,1770772252608,-603.83652519,0.00042521,120]
[405085791,1770772252618,-8026.52,0.00042546,120]
[405085792,1770772252628,-5016.57,0.00042546,30]
[405085793,1770772252638,-153.04,0.00042575,120]
[405085794,1770772252649,-500.55,0.00042575,120]
[405085795,1770772252659,-500.0,0.00042575,120]
[405085796,1770772252668,-2046.08,0.000426,30]
[405085797,1770772252678,-269.29944,0.00042625,120]
[405085798,1770772252690,-12500.0,0.00042625,120]
[405085799,1770772252699,-153.04,0.00042675,120]
[405085800,1770772252709,-82372.18991623,0.000427,120]
[405085801,1770772252718,-150.0,0.00042702,120]
[405085802,1770772252729,-500.55,0.00042712,120]
[405085803,1770772252739,-500.0,0.00042712,120]
[405085804,1770772252748,-350.0,0.00042716,2]
[405085805,1770772252757,-1550.0,0.00042739,30]
[405085806,1770772252767,-1000.0,0.0004274,30]
[405085807,1770772252777,-2500.0,0.0004274,7]
[405085808,1770772252788,-260.58916459,0.0004274,120]
[405085809,1770772252797,-505.0,0.0004277,14]
[405085810,1770772252807,-153.04,0.00042775,120]
[405085811,1770772252817,-3612.0,0.000428,60]
[405085812,1770772252826,-2211.13,0.000428,14]
[405085813,1770772252835,-153.0,0.000428,120]
[405085814,1770772252845,-198.49808088,0.000428,120]
[405085815,1770772252854,-152.0,0.00042803,9]
[405085816,1770772252864,-500.55,0.00042849,120]
[405085817,1770772252875,-500.0,0.00042849,120]
[405085818,1770772252884,-153.04,0.00042875,120]
[405085819,1770772252895,-2448.0,0.00042888,2]
[405085820,1770772252904,-5965.0,0.00042888,2]
[405085821,1770772252914,-505.45239369,0.000429,120]
[405085822,1770772252928,-505.4523936,0.000429,120]
[405085823,1770772252937,-505.4523936,0.000429,120]
[405085824,1770772252947,-505.4523936,0.000429,120]
[405085825,1770772252956,-505.4523936,0.000429,120]
[405085826,1770772252966,-505.4523936,0.000429,120]
[405085827,1770772252975,-505.4523936,0.000429,120]
[405085828,1770772252985,-505.4523936,0.000429,120]
[405085829,1770772252994,-505.4523936,0.000429,120]
[405085830,1770772253004,-505.4523936,0.000429,120]
[405085831,1770772253014,-505.4523936,0.000429,120]
[405085832,1770772253023,-505.4523936,0.000429,120]
[405085833,1770772253034,-505.4523936,0.000429,120]
[405085834,1770772253043,-505.4523936,0.000429,120]
[405085835,1770772253054,-505.4523936,0.000429,120]
[405085836,1770772253063,-505.4523936,0.000429,120]
[405085837,1770772253074,-505.4523936,0.000429,120]
[405085838,1770772253084,-505.4523936,0.000429,120]
[405085839,1770772253095,-505.4523936,0.000429,120]
[405085840,1770772253106,-505.4523936,0.000429,120]
[405085841,1770772253116,-500.0,0.00042914,60]
[405085842,1770772253127,-500.0,0.00042914,60]
[405085843,1770772253137,-500.0,0.00042914,60]
[405085844,1770772253148,-150.0,0.00042925,120]
[405085845,1770772253158,-164.0,0.00042943,16]
[405085846,1770772253168,-840.0,0.00042955,16]
[405085847,1770772253178,-1247.0,0.00042965,16]
[405085848,1770772253188,-905.0,0.00042965,16]
[405085849,1770772253199,-20290.60359858,0.00042974,2]
[405085850,1770772253210,-153.04,0.00042975,120]
[405085851,1770772253221,-500.55,0.00042986,120]
[405085852,1770772253231,-500.0,0.00042986,120]
[405085853,1770772253242,-840.0,0.00042997,16]
[405085854,1770772253252,-529.0,0.00043,30]
[405085855,1770772253262,-20964.999999,0.00043,7]
[405085856,1770772253273,-214.0,0.00043,7]
[405085857,1770772253283,-215.80817383,0.00043,120]
[405085858,1770772253293,-985.63878204,0.00043,120]
[405085859,1770772253303,-30729.56610178,0.00043,120]
[405085860,1770772253314,-2222.15826375,0.00043,120]
[405085861,1770772253324,-6336.53885311,0.00043,120]
[405085862,1770772253335,-848.2,0.00043,14]
[405085863,1770772253345,-160.0,0.00043,7]
[405085864,1770772253356,-1664.67,0.00043,14]
[405085865,1770772253367,-160.0,0.00043,7]
[405085866,1770772253379,-160.0,0.00043,3]
[405085867,1770772253390,-151.0,0.00043,120]
[405085868,1770772253400,-151.0,0.00043,120]
[405085869,1770772253411,-151.0,0.00043,120]
[405085870,1770772253421,-151.0,0.00043,120]
[405085871,1770772253431,-151.0,0.00043,120]
[405085872,1770772253441,-151.0,0.00043,120]
[405085873,1770772253451,-151.527468,0.00043,120]
[405085874,1770772253461,-151.0,0.00043,120]
[405085875,1770772253471,-151.527468,0.00043,120]
[405085876,1770772253481,-309.335196,0.00043,120]
[405085877,1770772253491,-309.335196,0.00043,120]
[405085878,1770772253501,-309.335196,0.00043,120]
[405085879,1770772253510,-151.527468,0.00043,120]
[405085880,1770772253520,-309.335196,0.00043,120]
[405085881,1770772253530,-1033.05548713,0.00043,30]
[405085882,1770772253541,-7866.63,0.00043,120]
[405085883,1770772253552,-4103.58,0.00043013,120]
[405085884,1770772253563,-1000.0,0.00043014,30]
[405085885,1770772253574,-153.04,0.00043075,120]
[405085886,1770772253585,-23794.69598797,0.000431,120]
[405085887,1770772253595,-500.55,0.00043123,120]
[405085888,1770772253605,-500.0,0.00043123,120]
[405085889,1770772253615,-153.04,0.00043175,120]
[405085890,1770772253627,-84981.88598653,0.000432,120]
[405085891,1770772253643,-1845.40565946,0.00043203,2]
[405085892,1770772253654,-150.0,0.00043214,2]
[405085893,1770772253665,-150.0,0.00043214,2]
[405085894,1770772253675,-150.0,0.00043214,2]
[405085895,1770772253686,-150.0,0.00043214,2]
[405085896,1770772253696,-1287.0,0.00043214,2]
[405085897,1770772253707,-1336.0,0.00043214,2]
[405085898,1770772253718,-617.0,0.00043214,2]
[405085899,1770772253730,-1273.0,0.00043214,2]
[405085900,1770772253742,-1207.0,0.00043214,2]
[405085901,1770772253753,-918.0,0.00043214,2]
[405085902,1770772253763,-350.0,0.0004322,2]
[405085903,1770772253773,-8600.2986,0.0004322,7]
[405085904,1770772253784,-500.55,0.0004326,120]
[405085905,1770772253795,-500.0,0.0004326,120]
[405085906,1770772253807,-32155.0,0.00043261,30]
[405085907,1770772253818,-840.0,0.00043266,16]
[405085908,1770772253829,-153.04,0.00043275,120]
[405085909,1770772253840,-164.0,0.00043277,16]
[405085910,1770772253851,-500.0,0.00043287,120]
[405085911,1770772253862,-500.0,0.00043287,120]
[405085912,1770772253874,-500.0,0.00043287,120]
[405085913,1770772253885,-500.0,0.00043287,120]
[405085914,1770772253895,-500.0,0.00043287,120]
[405085915,1770772253906,-155.02176336,0.00043287,120]
[405085916,1770772253917,-1000.0,0.00043288,30]
[405085917,1770772253927,-2000.0,0.000433,2]
[405085918,1770772253937,-151.0,0.000433,120]
[405085919,1770772253947,-1000.0,0.000433,2]
[405085920,1770772253956,-986.0,0.000433,30]
[405085921,1770772253966,-790.0,0.000433,30]
[405085922,1770772253976,-153.04,0.00043375,120]
[405085923,1770772253987,-163.0,0.00043391,120]
[405085924,1770772253997,-154.0,0.00043391,120]
[405085925,1770772254008,-500.55,0.00043397,120]
[405085926,1770772254019,-500.0,0.00043397,120]
[405085927,1770772254029,-500.0,0.00043462,60]
[405085928,1770772254040,-706.18274694,0.00043474,120]
[405085929,1770772254051,-658.59473702,0.00043474,15]
[405085930,1770772254118,-658.59473697,0.00043474,15]
[405085931,1770772254129,-658.59473697,0.00043474,15]
[405085932,1770772254140,-658.59473697,0.00043474,15]
[405085933,1770772254150,-658.59473697,0.00043474,15]
[405085934,1770772254160,-658.59473697,0.00043474,15]
[405085935,1770772254170,-658.59473697,0.00043474,15]
[405085936,1770772254180,-658.59473697,0.00043474,15]
[405085937,1770772254190,-658.59473697,0.00043474,15]
[405085938,1770772254200,-658.59473697,0.00043474,15]
[405085939,1770772254210,-658.59473697,0.00043474,15]
[405085940,1770772254220,-658.59473697,0.00043474,15]
[405085941,1770772254230,-658.59473697,0.00043474,15]
[405085942,1770772254241,-658.59473697,0.00043474,15]
[405085943,1770772254251,-153.04,0.00043475,120]
[405085944,1770772254261,-150.04905653,0.000435,120]
[405085945,1770772254270,-314.26358231,0.000435,120]
[405085946,1770772254279,-2046.08,0.000435,30]
[405085947,1770772254290,-500.55,0.00043534,120]
[405085948,1770772254300,-500.0,0.00043534,120]
[405085949,1770772254311,-1000.0,0.00043542,21]
[405085950,1770772254322,-500.0,0.0004355,30]
[405085951,1770772254332,-1000.0,0.00043562,30]
[405085952,1770772254342,-153.04,0.00043575,120]
[405085953,1770772254352,-840.0,0.00043595,16]
[405085954,1770772254362,-420.50602139,0.000436,120]
[405085955,1770772254372,-840.0,0.00043601,16]
[405085956,1770772254381,-988.72160231,0.00043613,120]
[405085957,1770772254391,-505.0,0.00043616,15]
[405085958,1770772254401,-164.0,0.00043637,16]
[405085959,1770772254411,-2828.0,0.00043637,16]
[405085960,1770772254421,-151.0,0.00043639,10]
[405085961,1770772254431,-151.0,0.00043639,10]
[405085962,1770772254440,-151.0,0.00043639,10]
[405085963,1770772254449,-151.0,0.00043639,10]
[405085964,1770772254459,-151.0,0.00043639,10]
[405085965,1770772254469,-151.0,0.00043639,10]
[405085966,1770772254478,-151.0,0.00043639,10]
[405085967,1770772254488,-151.0,0.00043639,10]
[405085968,1770772254499,-151.0,0.00043639,10]
[405085969,1770772254509,-151.0,0.00043639,10]
[405085970,1770772254518,-151.0,0.00043639,10]
[405085971,1770772254528,-224.0,0.00043639,10]
[405085972,1770772254538,-500.55,0.00043671,120]
[405085973,1770772254547,-500.0,0.00043671,120]
[405085974,1770772254558,-153.04,0.00043675,120]
[405085975,1770772254568,-500.0,0.0004369,120]
[405085976,1770772254578,-500.0,0.0004369,120]
[405085977,1770772254587,-500.0,0.0004369,120]
[405085978,1770772254597,-500.0,0.0004369,120]
[405085979,1770772254607,-500.0,0.0004369,120]
[405085980,1770772254618,-500.0,0.0004369,120]
[405085981,1770772254627,-500.0,0.0004369,120]
[405085982,1770772254637,-500.0,0.0004369,120]
[405085983,1770772254647,-500.0,0.0004369,120]
[405085984,1770772254661,-500.0,0.0004369,120]
[405085985,1770772254670,-500.0,0.0004369,120]
[405085986,1770772254681,-500.0,0.0004369,120]
[405085987,1770772254691,-500.0,0.0004369,120]
[405085988,1770772254701,-500.0,0.0004369,120]
[405085989,1770772254711,-500.0,0.0004369,120]
[405085990,1770772254722,-500.0,0.0004369,120]
[405085991,1770772254732,-500.0,0.0004369,120]
[405085992,1770772254742,-500.0,0.0004369,120]
[405085993,1770772254752,-500.0,0.0004369,120]
[405085994,1770772254761,-500.0,0.0004369,120]
[405085995,1770772254775,-500.0,0.0004369,120]
[405085996,1770772254786,-500.0,0.0004369,120]
[405085997,1770772254795,-500.0,0.0004369,120]
[405085998,1770772254805,-500.0,0.0004369,120]
[405085999,1770772254814,-500.0,0.0004369,120]
[405086000,1770772254824,-500.0,0.0004369,120]
[405086001,1770772254833,-500.0,0.0004369,120]
[405086002,1770772254847,-500.0,0.0004369,120]
[405086003,1770772254856,-500.0,0.0004369,120]
[405086004,1770772254866,-500.0,0.0004369,120]
[405086005,1770772254877,-500.0,0.0004369,120]
[405086006,1770772254886,-500.0,0.0004369,120]
[405086007,1770772254898,-500.0,0.0004369,120]
[405086008,1770772254908,-500.0,0.0004369,120]
[405086009,1770772254918,-500.0,0.0004369,120]
[405086010,1770772254929,-500.0,0.0004369,120]
[405086011,1770772254939,-500.0,0.0004369,120]
[405086012,1770772254948,-500.0,0.0004369,120]
[405086013,1770772254959,-500.0,0.0004369,120]
[405086014,1770772254969,-500.0,0.0004369,120]
[405086015,1770772254979,-500.0,0.0004369,120]
[405086016,1770772254989,-500.0,0.0004369,120]
[405086017,1770772254999,-500.0,0.0004369,120]
[405086018,1770772255010,-500.0,0.0004369,120]
[405086019,1770772255019,-500.0,0.0004369,120]
[405086020,1770772255031,-500.0,0.0004369,120]
[405086021,1770772255044,-500.0,0.0004369,120]
[405086022,1770772255054,-500.0,0.0004369,120]
[405086023,1770772255063,-500.0,0.0004369,120]
[405086024,1770772255073,-500.0,0.0004369,120]
[405086025,1770772255082,-500.0,0.0004369,120]
[405086026,1770772255092,-500.0,0.0004369,120]
[405086027,1770772255101,-500.0,0.0004369,120]
[405086028,1770772255111,-500.0,0.0004369,120]
[405086029,1770772255120,-500.0,0.0004369,120]
[405086030,1770772255132,-500.0,0.0004369,120]
[405086031,1770772255142,-500.0,0.0004369,120]
[405086032,1770772255151,-711.0,0.0004369,120]
[405086033,1770772255161,-500.0,0.0004369,120]
[405086034,1770772255171,-500.0,0.0004369,120]
[405086035,1770772255181,-500.0,0.0004369,120]
[405086036,1770772255192,-500.0,0.0004369,120]
[405086037,1770772255202,-500.0,0.0004369,120]
[405086038,1770772255211,-500.0,0.0004369,120]
[405086039,1770772255221,-500.0,0.0004369,120]
[405086040,1770772255231,-500.0,0.0004369,120]
[405086041,1770772255244,-500.0,0.0004369,120]
[405086042,1770772255253,-500.0,0.0004369,120]
[405086043,1770772255263,-500.0,0.0004369,120]
[405086044,1770772255473,-500.0,0.0004369,120]
[405086045,1770772255483,-500.0,0.0004369,120]
[405086046,1770772255493,-500.0,0.0004369,120]
[405086047,1770772255503,-500.0,0.0004369,120]
[405086048,1770772255512,-500.0,0.0004369,120]
[405086049,1770772255522,-954.0,0.0004369,120]
[405086050,1770772255532,-500.0,0.0004369,120]
[405086051,1770772255541,-500.0,0.0004369,120]
[405086052,1770772255551,-500.0,0.0004369,120]
[405086053,1770772255561,-500.0,0.0004369,120]
[405086054,1770772255571,-500.0,0.0004369,120]
[405086055,1770772255580,-500.0,0.0004369,120]
[405086056,1770772255589,-500.0,0.0004369,120]
[405086057,1770772255599,-500.0,0.0004369,120]
[405086058,1770772255608,-500.0,0.0004369,120]
[405086059,1770772255617,-500.0,0.0004369,120]
[405086060,1770772255627,-500.0,0.0004369,120]
[405086061,1770772255637,-500.0,0.0004369,120]
[405086062,1770772255647,-500.0,0.0004369,120]
[405086063,1770772255660,-500.0,0.0004369,120]
[405086064,1770772255670,-500.0,0.0004369,120]
[405086065,1770772255680,-500.0,0.0004369,120]
[405086066,1770772255691,-500.0,0.0004369,120]
[405086067,1770772255701,-500.0,0.0004369,120]
[405086068,1770772255710,-500.0,0.0004369,120]
[405086069,1770772255719,-500.0,0.0004369,120]
[405086070,1770772255729,-500.0,0.0004369,120]
[405086071,1770772255739,-500.0,0.0004369,120]
[405086072,1770772255748,-500.0,0.0004369,120]
[405086073,1770772255757,-500.0,0.0004369,120]
[405086074,1770772255767,-500.0,0.0004369,120]
[405086075,1770772255776,-500.0,0.0004369,120]
[405086076,1770772255785,-500.0,0.0004369,120]
[405086077,1770772255794,-500.0,0.0004369,120]
[405086078,1770772255804,-500.0,0.0004369,120]
[405086079,1770772255813,-500.0,0.0004369,120]
[405086080,1770772255822,-500.0,0.0004369,120]
[405086081,1770772255832,-500.0,0.0004369,120]
[405086082,1770772255841,-500.0,0.0004369,120]
[405086083,1770772255850,-500.0,0.0004369,120]
[405086084,1770772255859,-500.0,0.0004369,120]
[405086085,1770772255869,-500.0,0.0004369,120]
[405086086,1770772255879,-500.0,0.0004369,120]
[405086087,1770772255889,-500.0,0.0004369,120]
[405086088,1770772255898,-500.0,0.0004369,120]
[405086089,1770772255907,-500.0,0.0004369,120]
[405086090,1770772255916,-500.0,0.0004369,120]
[405086091,1770772255925,-500.0,0.0004369,120]
[405086092,1770772255934,-500.0,0.0004369,120]
[405086093,1770772255944,-500.0,0.0004369,120]
[405086094,1770772255952,-500.0,0.0004369,120]
[405086095,1770772255961,-500.0,0.0004369,120]
[405086096,1770772255970,-500.0,0.0004369,120]
[405086097,1770772255979,-500.0,0.0004369,120]
[405086098,1770772255988,-500.0,0.0004369,120]
[405086099,1770772255997,-500.0,0.0004369,120]
[405086100,1770772256006,-500.0,0.0004369,120]
[405086101,1770772256015,-500.0,0.0004369,120]
[405086102,1770772256024,-500.0,0.0004369,120]
[405086103,1770772256033,-500.0,0.0004369,120]
[405086104,1770772256042,-500.0,0.0004369,120]
[405086105,1770772256051,-500.0,0.0004369,120]
[405086106,1770772256060,-500.0,0.0004369,120]
[405086107,1770772256070,-500.0,0.0004369,120]
[405086108,1770772256079,-500.0,0.0004369,120]
[405086109,1770772256089,-500.0,0.0004369,120]
[405086110,1770772256099,-500.0,0.0004369,120]
[405086111,1770772256108,-500.0,0.0004369,120]
[405086112,1770772256118,-500.0,0.0004369,120]
[405086113,1770772256127,-500.0,0.0004369,120]
[405086114,1770772256136,-500.0,0.0004369,120]
[405086115,1770772256146,-500.0,0.0004369,120]
[405086116,1770772256155,-500.0,0.0004369,120]
[405086117,1770772256164,-500.0,0.0004369,120]
[405086118,1770772256174,-500.0,0.0004369,120]
[405086119,1770772256183,-500.0,0.0004369,120]
[405086120,1770772256192,-500.0,0.0004369,120]
[405086121,1770772256202,-500.0,0.0004369,120]
[405086122,1770772256211,-500.0,0.0004369,120]
[405086123,1770772256220,-500.0,0.0004369,120]
[405086124,1770772256230,-500.0,0.0004369,120]
[405086125,1770772256239,-500.0,0.0004369,120]
[405086126,1770772256248,-961.0,0.0004369,120]
[405086127,1770772256258,-500.0,0.0004369,120]
[405086128,1770772256267,-500.0,0.0004369,120]
[405086129,1770772256280,-500.0,0.0004369,120]
[405086130,1770772256291,-500.0,0.0004369,120]
[405086131,1770772256300,-500.0,0.0004369,120]
[405086132,1770772256310,-500.0,0.0004369,120]
[405086133,1770772256319,-500.0,0.0004369,120]
[405086134,1770772256329,-500.0,0.0004369,120]
[405086135,1770772256339,-500.0,0.0004369,120]
[405086136,1770772256348,-500.0,0.0004369,120]
[405086137,1770772256358,-500.0,0.0004369,120]
[405086138,1770772256367,-500.0,0.0004369,120]
[405086139,1770772256377,-500.0,0.0004369,120]
[405086140,1770772256386,-500.0,0.0004369,120]
[405086141,1770772256395,-500.0,0.0004369,120]
[405086142,1770772256404,-500.0,0.0004369,120]
[405086143,1770772256414,-500.0,0.0004369,120]
[405086144,1770772256423,-500.0,0.0004369,120]
[405086145,1770772256433,-500.0,0.0004369,120]
[405086146,1770772256442,-500.0,0.0004369,120]
[405086147,1770772256451,-500.0,0.0004369,120]
[405086148,1770772256460,-500.0,0.0004369,120]
[405086149,1770772256469,-500.0,0.0004369,120]
[405086150,1770772256478,-500.0,0.0004369,120]
[405086151,1770772256487,-500.0,0.0004369,120]
[405086152,1770772256496,-500.0,0.0004369,120]
[405086153,1770772256506,-500.0,0.0004369,120]
[405086154,1770772256515,-500.0,0.0004369,120]
[405086155,1770772256524,-500.0,0.0004369,120]
[405086156,1770772256533,-500.0,0.0004369,120]
[405086157,1770772256543,-500.0,0.0004369,120]
[405086158,1770772256552,-500.0,0.0004369,120]
[405086159,1770772256562,-500.0,0.0004369,120]
[405086160,1770772256571,-500.0,0.0004369,120]
[405086161,1770772256580,-500.0,0.0004369,120]
[405086162,1770772256589,-500.0,0.0004369,120]
[405086163,1770772256599,-500.0,0.0004369,120]
[405086164,1770772256607,-500.0,0.0004369,120]
[405086165,1770772256617,-500.0,0.0004369,120]
[405086166,1770772256626,-500.0,0.0004369,120]
[405086167,1770772256636,-500.0,0.0004369,120]
[405086168,1770772256646,-500.0,0.0004369,120]
[405086169,1770772256659,-500.0,0.0004369,120]
[405086170,1770772256668,-500.0,0.0004369,120]